bitfinex-derivatives/quotes_BNBF0:USTF0_20250424
["timestamp","ask_amount","ask_price","bid_price","bid_amount"]
[1745507433443,0.27113063,600.81,599.21,0.61511365]
[1745507433645,0.27113063,600.81,599.13,0.29007494]
[1745507433848,0.27113063,600.81,599.14,0.92110749]
[1745507434149,0.56110767,600.8,599.15,0.92110749]
[1745507434346,0.27113063,600.79,599.16,0.92110749]
[1745507434649,0.27113063,600.78,599.17,0.92110749]
[1745507434848,0.28997704,600.8,599.18,0.61479919]
[1745507435049,0.2710833,600.79,599.19,0.61479919]
[1745507435348,0.2710833,600.79,599.13,0.28997704]
[1745507435349,0.2710833,600.79,599.2,0.61479919]
[1745507435544,0.2710833,600.79,599.21,0.61479919]
[1745507435747,0.2710833,600.79,599.22,0.61479919]
[1745507435948,0.2710833,600.79,599.23,0.61479919]
[1745507436144,0.2710833,600.79,599.24,0.61479919]
[1745507436349,0.28997704,600.8,599.25,0.61479919]
[1745507436550,0.27104926,600.79,599.26,0.61479919]
[1745507436749,0.27104926,600.79,599.27,0.61447363]
[1745507437050,0.27104926,600.79,599.28,0.61447363]
[1745507437245,0.27104926,600.78,599.19,0.29003021]
[1745507437444,0.27104926,600.88,599.2,0.61442424]
[1745507437643,0.27104926,600.87,599.21,0.61442424]
[1745507437845,0.27104926,600.88,599.22,0.61442424]
[1745507438047,0.2710496,600.87,599.23,0.61442424]
[1745507438251,0.2710496,600.88,599.24,0.61442424]
[1745507438552,0.2710496,600.87,599.25,0.61442424]
[1745507438851,0.2710496,600.86,599.26,0.61439842]
[1745507439149,0.2710496,600.85,599.27,0.61439842]
[1745507439350,0.2710496,601.17,599.28,0.61439842]
[1745507439652,0.27104315,601.16,599.19,0.29003021]
[1745507439850,0.27104315,601.15,599.2,0.6144187]
[1745507440050,0.27104315,601.14,599.21,0.6144187]
[1745507440246,0.27104315,601.13,599.22,0.6144187]
[1745507440449,0.27104315,601.12,599.23,0.6144187]
[1745507440651,0.27104315,601.11,599.24,0.6144187]
[1745507440849,0.27104315,601.1,599.25,0.6144187]
[1745507441049,0.2900145,601.15,599.26,0.6144187]
[1745507441050,0.27104315,601.09,599.26,0.6144187]
[1745507441347,0.27104315,601.08,599.27,0.6144187]
[1745507441552,0.27104315,601.08,599.28,0.6144187]
[1745507441753,0.27104315,601.07,599.19,0.29003021]
[1745507441954,0.27104315,601.06,599.2,0.61442931]
[1745507442255,0.27104315,601.05,599.21,0.61442931]
[1745507442454,0.27104315,601.04,599.22,0.61443527]
[1745507442650,0.27105129,601.03,599.23,0.61443527]
[1745507442956,0.27105129,601.02,599.24,0.61443527]
[1745507443157,0.27105129,601.01,599.25,0.61443527]
[1745507443357,0.27105129,601.0,599.26,0.61443527]
[1745507443558,0.27105129,600.99,599.27,0.61443527]
[1745507443761,0.27105129,600.98,599.28,0.61442445]
[1745507443953,0.27105129,600.97,599.21,0.29001571]
[1745507444156,0.27105129,600.96,599.22,0.30627115]
[1745507444457,0.27105129,600.95,599.22,0.30627115]
[1745507444757,0.27105129,600.94,599.23,0.61427024]
[1745507444958,0.27105129,601.01,599.24,0.92054139]
[1745507445160,0.27105129,601.0,599.25,0.92054139]
[1745507445355,0.27105129,600.99,599.26,0.92054139]
[1745507445554,0.27105129,600.98,599.27,0.92054139]
[1745507445754,0.27105129,600.97,599.28,0.92054139]
[1745507445952,0.27105129,600.96,599.29,0.92054139]
[1745507446156,0.27105129,600.95,599.3,0.92054139]
[1745507446457,0.27105129,600.94,599.31,0.92054139]
[1745507446657,0.27105129,600.93,599.32,0.92054139]
[1745507446857,0.27105129,600.92,599.33,0.92054139]
[1745507447057,0.27105129,600.95,599.34,0.61427024]
[1745507447258,0.29,600.96,599.35,0.61427024]
[1745507447451,0.27100762,600.95,599.36,0.61383571]
[1745507447756,0.27100762,600.95,599.37,0.61379784]
[1745507447951,0.27100762,600.95,599.38,0.61379784]
[1745507448159,0.27100762,600.95,599.39,0.61379784]
[1745507448352,0.27100762,600.95,599.24,0.29]
[1745507448353,0.27100762,600.95,599.4,0.61379784]
[1745507448555,0.27100762,600.95,599.41,0.91998422]
[1745507448756,0.29,600.96,599.42,0.61379784]
[1745507448954,0.27096111,600.95,599.43,0.91937363]
[1745507449158,0.27096111,600.94,599.44,0.91926439]
[1745507449360,0.27096111,600.93,599.45,0.30618167]
[1745507449657,0.27096111,600.92,599.46,0.30618167]
[1745507449862,0.27096111,600.95,599.46,0.30618167]
[1745507450053,0.27096111,600.94,599.47,0.30618167]
[1745507450257,0.27096111,600.93,599.25,0.30618167]
[1745507450453,0.27096111,600.92,599.26,0.61292374]
[1745507450753,0.27096111,600.91,599.27,0.91910541]
[1745507450953,0.27096111,600.95,599.28,0.91910541]
[1745507451158,0.27096111,600.94,599.29,0.91910541]
[1745507451357,0.27096111,600.95,599.3,0.91910541]
[1745507451558,0.27096111,600.94,599.31,0.91910541]
[1745507451755,0.29,600.96,599.32,0.61292374]
[1745507451960,1.2761771,601.11,599.33,0.91904716]
[1745507452155,0.27090382,601.1,599.34,0.91904716]
[1745507452362,1.2761771,601.07,599.35,0.91904716]
[1745507452561,0.27090382,601.06,599.36,0.91904716]
[1745507452759,0.27090382,601.06,599.37,0.61292374]
[1745507452958,0.27090382,601.06,599.38,0.91902471]
[1745507453159,0.27090382,601.06,599.39,0.91902471]
[1745507453358,0.27090382,601.06,599.4,0.91902471]
[1745507453661,0.27090382,601.06,599.41,0.91902471]
[1745507453956,0.27090382,601.06,599.42,0.91902471]
[1745507454162,0.27090382,601.06,599.43,0.91902471]
[1745507454362,0.27090382,601.06,599.44,0.91902471]
[1745507454556,0.27090382,601.06,599.45,0.91902471]
[1745507454760,0.27090382,601.06,599.46,0.61292374]
[1745507455059,0.27090382,601.06,599.47,0.61292374]
[1745507455261,0.27090382,601.06,599.48,0.61292374]
[1745507455458,0.27090382,601.06,599.35,0.28989854]
[1745507455459,0.27090382,601.84,599.49,0.61292374]
[1745507455658,0.27090382,601.83,599.5,0.61292374]
[1745507455857,0.27090382,601.82,599.51,0.61292374]
[1745507456161,0.27090382,601.81,599.52,0.9190193]
[1745507456361,0.27090382,601.8,599.53,0.9190193]
[1745507456562,0.27087545,601.79,599.54,0.61292374]
[1745507456762,0.27087545,601.78,599.55,0.91901811]
[1745507456962,0.27087545,601.77,599.35,0.28989854]
[1745507457158,0.27087545,601.76,599.36,0.30610585]
[1745507457360,0.27087545,601.75,599.36,0.30610585]
[1745507457662,0.27087545,601.74,599.36,0.30610585]
[1745507457857,1.2761771,601.85,599.37,0.61137901]
[1745507457858,0.27087545,601.73,599.37,0.61137901]
[1745507458064,1.2761771,601.6,599.38,0.91748486]
[1745507458256,0.27087545,601.59,599.39,0.91748486]
[1745507458460,0.27087545,601.58,599.4,0.91748486]
[1745507458662,0.27087545,601.57,599.41,0.91748486]
[1745507458863,0.27087545,601.56,599.42,0.91748486]
[1745507459060,0.27087545,601.55,599.43,0.91748486]
[1745507459260,0.27087545,601.54,599.44,0.91748486]
[1745507459461,0.27087545,601.53,599.45,0.91748486]
[1745507459662,1.2761771,601.6,599.46,0.61137901]
[1745507459859,0.27089228,601.59,599.47,0.9174905]
[1745507460060,0.27089228,601.58,599.48,0.9174905]
[1745507460266,0.27089228,601.57,599.49,0.9174905]
[1745507460565,0.27089201,601.56,599.5,0.61137901]
[1745507460765,0.27089201,601.55,599.51,0.61124254]
[1745507461065,0.27089201,601.54,599.52,0.61124254]
[1745507461260,0.27089201,601.53,599.53,0.61124254]
[1745507461460,0.27089201,601.52,599.54,0.61123743]
[1745507461662,0.27089201,601.51,599.41,0.28984059]
[1745507461864,0.27089201,601.5,599.42,0.91730432]
[1745507462061,0.27089201,601.49,599.43,0.91730432]
[1745507462368,0.28984059,601.54,599.44,0.61120121]
[1745507462566,0.27088557,601.53,599.45,0.91730588]
[1745507462866,0.27088557,601.52,599.46,0.91730588]
[1745507463075,0.27088557,601.51,599.47,0.91730588]
[1745507463274,0.27088557,601.5,599.48,0.91730588]
[1745507463470,0.27088557,601.49,599.49,0.91730588]
[1745507463671,0.27088557,601.48,599.5,0.91730588]
[1745507463872,0.27088557,601.53,599.51,0.91730588]
[1745507464074,0.27088557,601.52,599.52,0.91730588]
[1745507464275,0.28980197,601.47,599.53,0.91730588]
[1745507464477,0.27088557,601.46,599.54,0.91730588]
[1745507464675,0.27088557,601.46,599.55,0.91730588]
[1745507464974,0.27088557,601.46,599.56,0.91730588]
[1745507465177,0.27088557,601.46,599.57,0.91730588]
[1745507465375,0.27088557,601.46,599.58,0.61120121]
[1745507465571,0.28980197,601.47,599.59,0.61120121]
[1745507465877,0.27084185,601.46,599.6,1.82726134]
[1745507466075,0.27084185,601.45,599.61,0.91726134]
[1745507466377,0.27084185,601.44,599.62,0.91726134]
[1745507466577,0.27084185,601.43,599.63,0.91726134]
[1745507466777,0.27084185,601.42,599.64,0.91726134]
[1745507467079,0.27084185,601.41,599.65,0.91726134]
[1745507467372,0.27084185,601.4,599.66,0.91726134]
[1745507467577,0.27084185,601.46,599.67,0.91726134]
[1745507467772,0.27084185,601.45,599.68,0.61120121]
[1745507467977,0.27084185,601.46,599.69,0.91726134]
[1745507468171,0.27084185,601.45,599.7,0.61120121]
[1745507468374,0.27084185,601.46,599.71,0.61120121]
[1745507468571,0.27084185,601.44,599.72,0.61120121]
[1745507468777,0.27084185,601.43,599.73,0.61120121]
[1745507468978,0.27084185,601.46,599.74,0.61120121]
[1745507469181,0.27084185,601.46,599.75,0.61120121]
[1745507469379,0.27084185,601.46,599.76,0.60887403]
[1745507469577,0.27084185,601.46,599.77,0.60887403]
[1745507469773,0.27084185,601.46,599.78,0.60887403]
[1745507469971,0.27084185,601.46,599.79,0.60887403]
[1745507470176,1.2761771,601.8,599.8,0.60887403]
[1745507470479,0.27071889,601.79,599.81,0.60887403]
[1745507470779,0.27071889,601.79,599.82,0.60846408]
[1745507470974,0.27071889,601.79,599.83,0.60846408]
[1745507471174,0.27071889,601.79,599.6,1.94]
[1745507471378,0.28969341,601.78,599.61,0.60814173]
[1745507471579,0.27071889,601.77,599.62,0.91405744]
[1745507471779,0.27071889,601.77,599.63,0.91405744]
[1745507472080,0.27071889,601.77,599.64,0.91408015]
[1745507472272,0.27071889,601.76,599.65,0.91408015]
[1745507472473,0.27071889,601.77,599.66,0.91408015]
[1745507472673,0.27071889,601.76,599.67,0.91408015]
[1745507472874,0.27071889,601.77,599.68,0.91408015]
[1745507473078,0.27071889,601.76,599.69,0.91408015]
[1745507473279,0.27071889,601.77,599.7,0.91408015]
[1745507473473,0.27071889,601.77,599.71,0.91408015]
[1745507473676,0.27071889,601.77,599.72,0.91408015]
[1745507473878,0.27071889,601.77,599.73,0.91408015]
[1745507474073,0.27071889,601.77,599.74,0.91408015]
[1745507474274,0.27071889,601.77,599.75,0.91408015]
[1745507474578,0.27071889,601.77,599.6,1.94]
[1745507474875,0.27071889,601.77,599.61,0.91367312]
[1745507475076,0.27071889,601.77,599.62,0.60772055]
[1745507475279,0.27071889,601.77,599.63,0.60772055]
[1745507475480,0.27071889,601.77,599.6,1.94]
[1745507475481,0.27071889,601.77,599.64,0.91365951]
[1745507475677,0.27071889,601.77,599.65,0.60772055]
[1745507475877,0.27071889,601.77,599.66,0.60772055]
[1745507476077,0.27071889,601.77,599.67,0.60772055]
[1745507476281,0.27071889,601.77,599.68,0.60722558]
[1745507476475,0.27071889,601.77,599.69,0.60722558]
[1745507476680,0.27071889,601.77,599.7,0.60722558]
[1745507476876,0.27071889,601.77,599.71,0.60722558]
[1745507477077,0.27071889,601.77,599.72,0.91314182]
[1745507477276,0.27071889,601.77,599.73,0.60722558]
[1745507477476,0.27071889,601.77,599.74,0.60722558]
[1745507477777,0.27071889,601.77,599.75,0.60722558]
[1745507478083,0.27071889,601.77,599.76,0.60722558]
[1745507478278,0.27071889,601.77,599.77,0.60722558]
[1745507478484,0.27071889,601.77,599.78,0.60722558]
[1745507478684,0.27071889,601.77,599.79,0.606807]
[1745507478981,0.27071889,601.77,599.6,1.94]
[1745507479188,0.56031225,601.76,599.66,0.28959336]
[1745507479390,0.27071889,601.75,599.67,0.91272725]
[1745507479581,0.27071889,601.74,599.68,0.91272725]
[1745507479785,0.27071889,601.73,599.69,0.91272725]
[1745507479981,0.27071889,601.72,599.7,0.91272725]
[1745507480185,0.27071889,601.71,599.71,0.91272725]
[1745507480384,0.27071889,601.7,599.72,0.9125954]
[1745507480587,0.27071889,601.69,599.73,0.9125954]
[1745507480890,0.27071889,601.68,599.74,0.9125954]
[1745507481189,0.27071889,601.67,599.75,0.9125954]
[1745507481386,0.27071889,601.66,599.76,0.9125954]
[1745507481590,0.27071889,601.65,599.77,0.9125954]
[1745507481789,0.27071889,601.75,599.78,0.9125954]
[1745507481986,0.27071889,601.74,599.79,0.9125954]
[1745507482190,0.27071889,601.74,599.77,0.743]
[1745507482191,0.27071889,601.73,599.8,0.9125954]
[1745507482387,0.27071889,601.72,599.81,0.3059108]
[1745507482691,0.27071889,601.71,599.82,0.3059108]
[1745507482889,0.27071889,601.7,599.78,0.3059108]
[1745507483089,0.27071889,601.69,599.79,0.60640188]
[1745507483288,0.27071889,601.68,599.8,0.91231268]
[1745507483489,0.28958011,601.74,599.81,0.3059108]
[1745507483490,0.27071889,601.67,599.81,0.3059108]
[1745507483792,0.27071889,601.66,599.82,0.3059108]
[1745507483991,0.27071889,601.65,599.78,0.3059108]
[1745507484188,0.27071889,601.64,599.79,0.91216631]
[1745507484385,0.2706836,601.63,599.8,0.60625551]
[1745507484588,0.2706836,601.73,599.81,0.30589906]
[1745507484790,0.2706836,601.72,599.78,0.30589906]
[1745507484990,0.2706836,601.71,599.81,0.851]
[1745507485191,0.28964157,601.71,599.82,0.30589906]
[1745507485385,0.2706836,601.7,599.82,0.30589906]
[1745507485891,0.28964157,601.71,599.81,0.851]
[1745507486092,0.2706769,601.7,599.82,0.30589233]
[1745507487295,0.2706769,601.7,599.83,0.60587138]
[1745507487495,0.27067149,601.69,599.84,0.30588678]
[1745507487795,0.27067149,601.68,599.85,0.30588678]
[1745507488096,0.27067149,601.67,599.86,0.30588678]
[1745507488290,0.28962469,601.67,599.82,0.30588678]
[1745507488489,0.27067149,601.66,599.83,0.91182462]
[1745507488790,0.27067149,601.66,599.84,0.9117946]
[1745507488992,0.27067149,601.66,599.85,0.30588678]
[1745507489194,0.27067149,601.66,599.86,0.30588678]
[1745507489390,0.27067149,601.66,599.82,0.30588678]
[1745507489595,0.27067149,601.66,599.83,0.60583923]
[1745507489896,0.27067149,601.66,599.84,0.60583923]
[1745507490089,0.27067149,601.66,599.85,0.60583923]
[1745507490294,0.27067149,601.66,599.81,0.851]
[1745507490490,0.28962469,601.67,599.82,0.6059643]
[1745507490696,0.27066044,601.66,599.83,0.6059643]
[1745507490998,0.27066044,601.66,599.84,0.60595059]
[1745507491190,0.27066044,601.66,599.81,0.851]
[1745507491391,0.27066044,601.65,599.82,0.91200211]
[1745507491593,0.27066044,601.64,599.83,0.30589142]
[1745507491791,0.27066044,601.66,599.82,0.30589142]
[1745507491995,0.27066044,601.65,599.82,0.30589142]
[1745507492193,0.27067512,601.64,599.83,0.30589046]
[1745507492395,0.27067512,601.63,599.83,0.665]
[1745507492693,0.27067512,601.62,599.84,0.30589046]
[1745507492889,0.27067512,601.66,599.84,0.30589046]
[1745507493597,0.28962469,601.67,599.83,0.665]
[1745507493897,0.27071684,601.66,599.84,0.30593261]
[1745507495296,0.27071023,601.65,599.85,0.30592626]
[1745507495494,0.27071023,601.64,599.86,0.30592626]
[1745507495800,0.27071023,601.63,599.83,0.665]
[1745507496196,0.28962469,601.67,599.83,0.665]
[1745507496197,0.27071023,601.66,599.83,0.665]
[1745507496396,0.27071023,601.65,599.83,0.665]
[1745507496596,0.27071023,601.66,599.83,0.665]
[1745507496796,0.2707144,601.65,599.83,0.665]
[1745507496994,0.2707144,601.66,599.83,0.665]
[1745507497201,0.2707144,601.65,599.83,0.665]
[1745507497399,0.28965603,601.65,599.83,0.665]
[1745507497696,0.2707144,601.64,599.83,0.665]
[1745507499504,0.2707144,601.64,599.84,0.60749245]
[1745507499697,0.2707144,601.64,599.85,0.60749122]
[1745507499900,0.2707144,601.64,599.83,0.665]
[1745507500101,0.2707144,602.13,599.84,0.60748547]
[1745507500300,0.28962831,601.63,599.85,0.60748547]
[1745507500499,0.2707144,601.62,599.83,0.665]
[1745507500703,0.2707144,601.61,599.84,0.60771139]
[1745507500903,0.2707144,601.6,599.85,0.9136132]
[1745507501103,0.2707144,602.07,599.86,0.9136132]
[1745507501301,0.2707144,602.06,599.87,0.9136132]
[1745507501499,0.2707144,602.05,599.88,0.9136132]
[1745507501700,0.2707144,602.04,599.89,0.9136132]
[1745507502005,0.2707144,602.03,599.9,0.9136132]
[1745507505005,0.27063637,601.94,600.01,0.91391979]
[1745507505205,0.27063637,601.93,600.02,0.9143201]
[1745507505406,1.2761771,601.96,599.99,0.928]
[1745507505407,0.27063637,601.92,600.03,0.60845334]
[1745507505707,1.2761771,601.8,599.99,0.928]
[1745507505906,0.27063637,601.79,600.03,0.884]
[1745507506308,0.56025504,601.79,600.04,0.60866089]
[1745507506510,0.27063637,601.78,600.03,0.884]
[1745507506710,0.27063637,601.78,600.04,0.60865613]
[1745507506912,0.27063637,601.78,600.03,0.884]
[1745507507106,0.27063637,601.78,600.04,0.60865378]
[1745507507309,0.27063637,601.78,600.05,0.60891274]
[1745507507505,0.27061947,601.77,600.03,0.884]
[1745507507709,0.27061947,601.76,600.04,0.60892645]
[1745507507908,0.27061947,601.78,600.03,0.884]
[1745507508210,0.28961867,601.79,600.03,0.884]
[1745507508211,0.27061947,601.77,600.04,0.91476257]
[1745507508411,0.28961867,601.79,600.03,0.884]
[1745507508412,0.27061947,601.78,600.05,0.60892875]
[1745507508612,0.27061947,601.78,600.03,0.884]
[1745507508812,0.27061947,601.78,600.04,0.60910415]
[1745507509012,0.27061947,601.78,600.05,0.60910415]
[1745507509209,0.27061947,601.78,600.06,0.60938044]
[1745507509408,0.27061947,601.78,600.03,0.884]
[1745507509613,0.27061947,601.78,600.04,0.60938713]
[1745507509914,0.27061947,601.78,600.03,0.884]
[1745507510213,0.27061947,601.78,600.04,0.6094542]
[1745507510410,0.27061947,601.78,600.05,0.6094542]
[1745507510615,0.27061947,601.78,600.03,0.884]
[1745507510812,0.27061947,601.78,600.04,0.60978071]
[1745507511013,0.27061947,601.78,600.05,0.60978071]
[1745507511215,0.27061947,601.78,600.06,0.60978071]
[1745507511411,0.27061947,601.78,600.07,0.60978071]
[1745507511709,0.27061947,601.78,600.03,0.884]
[1745507512615,0.27061947,601.77,600.03,0.884]
[1745507512816,0.27061947,601.76,600.03,0.884]
[1745507513016,0.27061947,601.75,600.03,0.884]
[1745507513211,0.27061947,601.74,600.03,0.884]
[1745507513410,0.27061947,601.73,600.03,0.884]
[1745507513713,0.27070158,601.72,600.03,0.884]
[1745507513914,0.27070158,601.71,600.03,0.884]
[1745507514209,0.27070158,601.7,600.03,0.884]
[1745507514409,0.27070158,601.69,600.03,0.884]
[1745507514610,0.27070158,601.68,600.03,0.884]
[1745507514816,0.27070158,601.67,600.03,0.884]
[1745507515018,0.27070158,601.66,600.03,0.884]
[1745507515212,1.2761771,601.96,600.03,0.884]
[1745507515418,0.28965001,601.66,600.03,0.884]
[1745507515612,0.27071448,601.65,600.03,0.884]
[1745507515816,0.27071448,601.64,600.03,0.884]
[1745507516017,0.27071448,601.63,600.03,0.884]
[1745507516320,0.27071448,601.62,600.03,0.884]
[1745507516620,0.27071448,601.61,600.03,0.884]
[1745507516818,1.2761771,601.96,600.03,0.884]
[1745507516819,1.2761771,601.63,600.03,0.884]
[1745507517019,0.27071448,601.62,600.03,0.884]
[1745507518220,0.28968256,601.61,600.03,0.884]
[1745507518420,0.27070267,601.6,600.03,0.884]
[1745507518724,0.27070267,601.6,600.03,1.674]
[1745507519728,0.28968256,601.61,600.03,1.674]
[1745507519928,0.27070448,601.59,600.03,1.674]
[1745507520223,0.27070448,601.58,600.03,1.674]
[1745507520425,0.27070448,601.57,600.03,1.674]
[1745507520729,0.27070806,601.56,600.03,1.674]
[1745507520928,0.27070806,601.6,600.03,1.674]
[1745507521131,1.2761771,602.15,600.03,1.674]
[1745507521330,0.28961987,601.55,600.03,1.674]
[1745507521528,0.27070857,601.54,600.03,1.674]
[1745507521728,0.27070857,601.53,600.03,1.674]
[1745507521929,0.27070857,602.14,600.03,1.674]
[1745507522129,0.27070857,602.13,600.03,1.674]
[1745507522330,0.27070857,602.12,600.03,1.674]
[1745507522526,0.27070857,602.11,600.03,1.674]
[1745507522724,0.27070857,602.1,600.03,1.674]
[1745507522929,0.27070857,602.09,600.03,1.674]
[1745507523131,0.27070857,602.08,600.03,1.674]
[1745507523332,0.27070857,602.07,600.03,1.674]
[1745507523531,0.27070857,602.06,600.03,1.674]
[1745507523831,0.27070857,602.05,600.03,1.674]
[1745507524026,0.27071502,602.04,600.03,1.674]
[1745507524229,0.27071502,602.03,600.03,1.674]
[1745507524426,0.27071502,602.02,600.03,1.674]
[1745507524631,0.27071502,602.01,600.03,1.674]
[1745507524827,0.27071502,602.0,600.03,1.674]
[1745507525031,0.27071502,601.99,600.03,1.674]
[1745507525232,0.27071502,601.98,600.03,1.674]
[1745507525429,1.2761771,601.82,600.03,1.674]
[1745507525635,0.27071685,601.81,600.03,1.674]
[1745507525835,0.27071685,601.8,600.03,1.674]
[1745507526036,0.27071685,601.79,600.03,1.674]
[1745507526334,0.27071685,601.78,600.03,1.674]
[1745507526537,0.27071685,601.77,600.03,1.674]
[1745507526732,0.27071685,601.76,600.03,1.674]
[1745507526935,0.27071685,601.75,600.03,1.674]
[1745507527135,0.27071685,601.74,600.03,1.674]
[1745507527338,0.27071685,601.73,600.03,1.674]
[1745507527640,0.27071685,601.72,600.03,1.674]
[1745507527840,0.27071685,601.71,600.03,1.674]
[1745507528041,0.27071685,601.7,600.04,0.61345617]
[1745507528243,0.27071685,601.69,600.05,0.61345617]
[1745507528540,1.2761771,601.63,600.03,1.674]
[1745507528741,0.27070033,601.62,600.04,0.61350827]
[1745507528934,0.27070033,601.61,600.05,0.61350827]
[1745507529137,0.27070033,601.6,600.03,1.674]
[1745507529339,0.27070033,601.59,600.04,0.61358087]
[1745507529540,0.27070033,601.58,600.03,1.674]
[1745507529737,0.27070033,601.57,600.03,1.674]
[1745507529937,0.27070033,601.56,600.03,1.674]
[1745507530136,1.2761771,601.63,600.03,1.674]
[1745507530441,1.2761771,601.63,600.04,0.61360743]
[1745507530442,0.28968979,601.55,600.04,0.61360743]
[1745507530639,0.27070176,601.54,600.05,0.61360743]
[1745507531142,0.27070176,601.62,600.03,1.674]
[1745507531444,0.27070176,601.61,600.03,1.674]
[1745507531643,0.27070176,601.68,600.03,1.674]
[1745507531843,0.27070176,601.67,600.03,1.674]
[1745507532041,0.27070176,601.66,600.03,1.674]
[1745507532343,0.27070176,601.65,600.04,0.61364539]
[1745507532543,0.27070176,601.64,600.05,0.61364539]
[1745507532742,0.27070176,601.63,600.05,0.61364539]
[1745507532938,0.27070176,601.62,600.05,0.61364539]
[1745507533138,1.2761771,601.69,600.05,0.61364539]
[1745507533336,0.289691,601.62,600.03,1.674]
[1745507533642,0.27070427,601.61,600.03,1.674]
[1745507533843,0.27070427,601.6,600.03,1.674]
[1745507534041,0.27070427,601.59,600.03,1.674]
[1745507534242,0.27070427,601.58,600.03,1.674]
[1745507534442,0.27070427,601.57,600.03,1.674]
[1745507534637,0.27070427,601.56,600.03,1.674]
[1745507534847,0.27070427,601.55,600.03,1.674]
[1745507535042,0.27070427,601.54,600.03,1.674]
[1745507535242,0.27070427,601.53,600.03,1.674]
[1745507535548,0.27070427,601.52,600.03,1.674]
[1745507535844,0.27070427,601.51,600.03,1.674]
[1745507536143,1.2761771,601.69,600.03,1.674]
[1745507536345,0.28972356,601.5,600.03,1.674]
[1745507536544,0.27078413,601.49,600.03,1.674]
[1745507536741,0.27078413,601.48,600.03,1.674]
[1745507536942,2.17127355,602.04,600.03,1.674]
[1745507536943,0.27078413,601.47,600.03,1.674]
[1745507537138,0.27078413,601.46,600.03,1.674]
[1745507537342,0.27078413,601.45,600.03,1.674]
[1745507537545,0.27078413,601.7,600.03,1.674]
[1745507537744,0.27078413,601.69,600.03,2.467]
[1745507537943,0.27078413,601.68,600.03,2.467]
[1745507538146,0.27078413,601.67,600.03,2.467]
[1745507538344,0.27078413,601.66,600.03,2.467]
[1745507538645,0.27078413,601.65,600.03,2.467]
[1745507538839,0.27078413,601.64,600.03,2.467]
[1745507539042,1.2761771,601.55,600.03,2.467]
[1745507539239,0.27078413,601.54,600.03,2.467]
[1745507539444,0.27078413,601.53,600.03,2.467]
[1745507539638,0.27078413,601.52,600.03,2.467]
[1745507539842,0.27078413,601.51,600.03,2.467]
[1745507540063,0.27078413,601.5,600.03,2.467]
[1745507540340,0.27078413,601.49,600.03,2.467]
[1745507540544,0.27078413,601.48,600.03,2.467]
[1745507540745,0.27078413,601.54,600.03,2.467]
[1745507540944,0.27085243,601.53,600.03,2.467]
[1745507541245,0.27085243,601.52,600.03,2.467]
[1745507541545,0.27085243,601.51,600.03,2.467]
[1745507541844,0.27085243,601.54,600.03,2.467]
[1745507542244,0.28977422,601.53,599.27,1.05851975]
[1745507542442,0.27085075,601.52,599.75,0.28977422]
[1745507542646,0.27085075,601.52,598.93,1.05851975]
[1745507542943,0.27085075,601.52,598.94,0.91895322]
[1745507543143,0.27085075,601.52,598.95,0.91895322]
[1745507543344,0.27085075,601.52,598.96,0.91895322]
[1745507543545,0.27085075,601.52,598.97,0.91895322]
[1745507543743,0.27085075,601.52,598.98,0.91895322]
[1745507543941,0.27085075,601.52,598.99,0.91895322]
[1745507544145,0.27085075,601.52,599.0,0.91895322]
[1745507544343,0.27085075,601.52,599.01,0.91895322]
[1745507544547,0.27085075,601.52,599.02,0.91895322]
[1745507544848,0.27085075,601.51,599.03,0.91895322]
[1745507545049,0.27085075,601.5,599.04,0.91895322]
[1745507545350,0.27085075,601.49,599.05,0.91895322]
[1745507545550,0.27085075,601.48,599.06,0.91895322]
[1745507545850,0.27085075,601.47,599.07,0.91895322]
[1745507546149,0.27085075,601.46,599.08,0.91895322]
[1745507546345,0.27085075,601.45,599.09,0.91895322]
[1745507546551,0.27085075,601.45,599.1,0.61288396]
[1745507546745,0.27085075,601.44,599.11,0.91895322]
[1745507546948,0.27085075,601.44,599.12,0.61288396]
[1745507547146,0.27085075,601.43,599.13,0.91895322]
[1745507547352,0.28977422,601.53,599.14,0.61288396]
[1745507547551,0.28977422,601.53,599.15,0.61288396]
[1745507547754,0.28977422,601.53,599.16,0.61288396]
[1745507547950,0.27089787,601.52,599.17,0.91900119]
[1745507548152,0.27089787,601.52,599.18,0.61288396]
[1745507548452,0.27089787,601.52,599.19,0.61288396]
[1745507548753,0.28977422,601.53,599.2,0.91897835]
[1745507548952,0.27087541,601.52,599.21,0.91897835]
[1745507549150,0.27087541,601.52,599.05,0.954]
[1745507549151,1.2761771,601.5,599.22,0.91897835]
[1745507549346,0.27087541,601.49,599.23,0.91897835]
[1745507549551,0.27087541,601.49,599.24,0.91897835]
[1745507549752,0.27087541,601.49,599.25,0.91897835]